Cogmind - Beta 16 @@@ ROGUE MODE // 2026.01.03 @ 14:28:28 Player: leto Result: Destroyed by G-34 Mercenary with Small Laser Performance ------------- Evolutions (0) 0 Regions Visited (1) 200 Robots Destroyed (24) 120 Value Destroyed (466) 466 Prototype IDs (0) 0 Alien Tech Used (0) 0 Bonus (0) 0 TOTAL SCORE: 786 Bonus ------- None Cogmind --------- Core Integrity 0/250 Matter 292/300 Energy 100/100 System Corruption 1% Temperature Cool (6) Movement Core (1500) Ox29 Location -10/Materials Parts ------- > --- POWER (1) -------- (None) > --- PROPULSION (2) --- (None) > --- UTILITY (2) ------ Medium Storage Unit Huge Storage Unit > --- WEAPON (2) ------- (None) > --- INVENTORY (25) --- Ion Engine Ion Engine Flight Unit Flight Unit Flight Unit Flight Unit Flight Unit Small Storage Unit Utility Shielding Hacking Suite Hacking Suite Light Assault Rifle Light Assault Rifle Grenade Launcher Grenade Launcher Datajack Peak State ------------ > --- POWER ------------ Light Nuclear Core > --- PROPULSION ------- Light Treads Light Treads > --- UTILITY ---------- Small Storage Unit Huge Storage Unit > --- WEAPON ----------- Medium Laser Light Assault Rifle > --- INVENTORY -------- Ion Engine Ion Engine Flight Unit Flight Unit Flight Unit Hacking Suite Grenade Launcher Grenade Launcher [Rating: 10] Favorites ----------- Power Light Nuclear Core Engine Ion Engine Power Core Light Nuclear Core Propulsion Light Treads Treads Light Treads Utility Small Storage Unit Storage Small Storage Unit Weapon Light Assault Rifle Energy Gun Medium Laser Ballistic Gun Light Assault Rifle Launcher Grenade Launcher Build | -11 -10 ------- Run | Yrd Mat Slots Evolved . | . . Power . | . . Propulsion . | . . Utility . | . . Weapon . | . . Parts Attached 13 | 6 7 Power 2 | 1 1 Engine 1 | 1 . Core 1 | . 1 Reactor . | . . Propulsion 2 | 2 . Treads 2 | 2 . Leg . | . . Wheel . | . . Hover . | . . Flight . | . . Utility 3 | 1 2 Device . | . . Storage 3 | 1 2 Processor . | . . Hackware . | . . Protection . | . . Artifact . | . . Weapon 6 | 2 4 Energy Gun 1 | 1 . Energy Cannon . | . . Ballistic Gun 4 | 1 3 Ballistic Cannon . | . . Launcher 1 | . 1 Special Weapon . | . . Impact Weapon . | . . Slashing Weapon . | . . Piercing Weapon . | . . Special Melee Weapon . | . . Unidentified Prototypes . | . . Parts Lost 6 | . 6 Power 2 | . 2 Propulsion 2 | . 2 Utility . | . . Weapon 2 | . 2 Highest Loss Streak 2 | . 2 To Critical Strikes . | . . Average Backups 8 | . 9 Power 1 | . 1 Propulsion 3 | . 3 Utility 1 | . 1 Weapon 2 | . 2 Tool/Special . | . . Unused Backups 14 | . 14 Power 2 | . 2 Propulsion 5 | . 5 Utility 3 | . 3 Weapon 3 | . 3 Tool/Special 1 | . 1 Average Slot Usage (%) 89 | . 89 Engine 5 | . 5 Core 7 | . 7 Treads 23 | . 23 Storage 23 | . 23 Energy Gun 12 | . 12 Ballistic Gun 15 | . 15 Peak Build Rating 10 | 6 10 Average Rating 8 | 5 8 On Entrance 3 | . 6 Avg Prop Armor Cover (%) . | . . Naked Turns . | . . Heaviest Build 98 | 13 98 Greatest Support 40 | 40 40 Greatest Overweight (x) 32 | 1 32 Average Overweight (x) 1 | . 1 Largest Inventory Capacity 25 | 8 25 Average Capacity 19 | 7 19 Most Carried 16 | . 16 Average Carried 9 | . 9 Final Capacity 25 | 8 25 Final Carried 16 | . 16 Class Distribution -------------------- 100% | Mutant Dominant Class ---------------- Mutant | -10/Materials Resources | -11 -10 ----------- Run | Yrd Mat Matter Collected 402 | 182 220 Remotely . | . . Salvage Created 676 | 66 610 Parts 53 | 3 50 Haulers Intercepted 1 | . 1 Recyclers Shooed 1 | . 1 Parts Field Recycled . | . . Retrieved Matter . | . . Parts Self-Destructed . | . . Prevented . | . . Parts Restored . | . . Kills | -11 -10 ------- Run | Yrd Mat Combat Hostiles Destroyed 15 | . 15 Guns 15 | . 15 Classes Destroyed 7 | 1 6 Builder 3 | . 3 Hauler 1 | . 1 Recycler 1 | 1 . Operator 2 | . 2 Watcher 2 | . 2 Swarmer 6 | . 6 Grunt 9 | . 9 Best Kill Streak 4 | 1 4 Combat Bots Only 3 | . 3 Max Kills in Single Turn 1 | 1 1 Gunslinging . | . . Exploded . | . . Melee . | . . Uniques/NPCs Destroyed . | . . Combat | -11 -10 -------- Run | Yrd Mat Hostile Shots Fired 106 | . 106 Missed 18 | . 18 Hits 88 | . 88 Projectile 88 | . 88 Damage Taken 1072 | . 1072 Core 253 | . 253 Absorbed by Shields . | . . Core Remaining (%) 100 | 100 . Volleys Fired 70 | 3 67 Largest 2 | 2 2 Hottest 70 | 70 70 Shots Fired 134 | 6 128 Gun 132 | 6 126 Cannon . | . . Launcher 2 | . 2 Special . | . . Kinetic 70 | 3 67 Thermal 62 | 3 59 Explosive 2 | . 2 Electromagnetic . | . . Robot Hit Streak 14 | 2 14 Robot Miss Streak 3 | 1 3 Penetration Max . | . . Secondary Targets 1 | . 1 Max Gunslinging Chain 1 | . 1 Shots Hit Robots 76 | 4 72 Core Hits 39 | 2 37 Critical Kills . | . . Critical Parts Destroyed 1 | . 1 Critical Strikes 5 | . 5 Burn 4 | . 4 Destroy 1 | . 1 Melee Attacks . | . . Impact . | . . Slashing . | . . Piercing . | . . Sneak Attacks . | . . Combat Hostiles . | . . Follow-up Attacks . | . . Damage Inflicted 821 | 41 780 Guns 786 | 41 745 Cannons . | . . Explosions . | . . Melee . | . . Ramming 35 | . 35 Kinetic 285 | 16 269 Thermal 501 | 25 476 Explosive . | . . Electromagnetic . | . . Impact . | . . Slashing . | . . Piercing . | . . Highest Corruption 1 | . 1 Average Corruption 1 | . 1 Corruption Purged . | . . Corruption Blocked . | . . Effects 6 | . 6 Matter Fused 3 | . 3 Heat Flow Errors 1 | . 1 Data Loss (minor) 2 | . 2 Overload Shots . | . . Overflow Damage . | . . Projectiles . | . . Explosions . | . . Melee . | . . Knockbacks . | . . Impact . | . . Kinetic . | . . Secondary . | . . Self-Inflicted Damage 9 | . 9 Shots 1 | . 1 Rammed 7 | . 7 Targets Rammed 7 | . 7 Kicked . | . . Crushed . | . . Highest Temperature 267 | 50 267 Average Temperature 60 | 26 61 Received Heat Transfer 483 | . 483 Siege Activations . | . . Martial Activations . | . . Shielding Activations . | . . Robots Disrupted . | . . Combat Hostiles . | . . Robots Corrupted . | . . Combat Hostiles . | . . Parts Fried . | . . Impact Corruptions . | . . Robots Melted . | . . Combat Hostiles . | . . Parts Melted 3 | . 3 Heat Transferred 1776 | 74 1702 Parts Sabotaged . | . . Parts Stolen . | . . Parts Stripped . | . . Power Chain Reactions . | . . Alert | -11 -10 ------- Run | Yrd Mat Maximum Alert Level . | . . Low Security (%) 100 | 100 100 Level 1 . | . . Level 2 . | . . Level 3 . | . . Level 4 . | . . Level 5 . | . . High Security . | . . Max Security . | . . Peak Influence 83 | 5 83 Initial . | . . Average 23 | . 24 Influence Increases 463 | 5 458 Destroy 0b10 Robot/C 300 | . 300 Destroy 0b10 Robot/NC 45 | 5 40 Destroy Leader 66 | . 66 Successful Hack 17 | . 17 Destroy Structure 20 | . 20 Lose Combat Pursuer 15 | . 15 Influence Decreases 456 | 5 451 Time Decay 436 | 5 431 Lost Part 20 | . 20 Squads Dispatched 4 | . 4 Investigation 2 | . 2 Extermination . | . . Reinforcement 2 | . 2 Assault . | . . Garrison . | . . Intercept . | . . Searches Triggered . | . . Construction Impeded . | . . Haulers Reinforced . | . . Active Scanning Responses . | . . Cargo Convoy Interrupts . | . . Stealth | -11 -10 --------- Run | Yrd Mat Distress Signals . | . . Communications Jammed . | . . Distress Signals . | . . Times Spotted 29 | . 29 Peak Tracking Total 5 | . 5 Tactical Retreats 1 | . 1 Traps | -11 -10 ------- Run | Yrd Mat Traps Triggered 3 | . 3 Indirectly . | . . Trap Hack Attempts . | . . Triggered . | . . Disarmed . | . . Reprogrammed . | . . Reused . | . . Traps Extracted . | . . Installed . | . . Triggered . | . . Machines | -11 -10 ---------- Run | Yrd Mat Machines Disabled . | . . Max in Single Turn . | . . Machines Repaired . | . . Machines Dismantled . | . . Machines Sabotaged . | . . Overloaded Fab Kills . | . . Hacking | -11 -10 --------- Run | Yrd Mat Machines Accessed 3 | . 3 Terminals 3 | . 3 Fabricators . | . . Repair Stations . | . . Recycling Units . | . . Scanalyzers . | . . Garrison Access . | . . Total Hacks 10 | . 10 Successful 4 | . 4 Failed 6 | . 6 Catastrophic . | . . Database Lockouts . | . . Manual 10 | . 10 Terminals 10 | . 10 Fabricators . | . . Repair Stations . | . . Recycling Units . | . . Scanalyzers . | . . Garrison Access . | . . Terminal Hacks . | . . Fabricator Hacks . | . . Repair Station Hacks . | . . Recycling Unit Hacks . | . . Scanalyzer . | . . Garrison Access Hacks . | . . Unauthorized Hacks 4 | . 4 Terminals 4 | . 4 Botnet 3 | . 3 Operators 1 | . 1 Fabricators . | . . Repair Stations . | . . Recycling Units . | . . Scanalyzers . | . . Garrison Access . | . . Data Cores Recovered . | . . Used . | . . Hacking Detections 3 | . 3 Full Trace Events 2 | . 2 Feedback Events . | . . Feedback Blocked . | . . Robot Schematics Acquired . | . . Robots Built . | . . Authchips . | . . Time . | . . Total Robot Build Rating . | . . Part Schematics Acquired . | . . Parts Built . | . . Authchips . | . . Time . | . . Total Part Build Rating . | . . Part Studies Acquired . | . . Parts Repaired . | . . Time . | . . Parts Recycled . | . . Recycled Matter . | . . Retrieved Matter . | . . Retrieved Components . | . . Parts Scanalyzed . | . . Part Schematics Acquired . | . . Parts Damaged . | . . Bothacking | -11 -10 ------------ Run | Yrd Mat Used RIF Installer . | . . Robots Hacked . | . . Non-combat . | . . Combat . | . . Robot Hacks Applied . | . . Relay Couplers Released . | . . Fabnet Peak Effective % . | . . Robots Rewired . | . . Allies Hacked . | . . Hacks Repelled . | . . Allies | -11 -10 -------- Run | Yrd Mat Total Allies . | . . Largest Group . | . . Highest-Rated Group . | . . Highest-Rated Ally . | . . Total Orders . | . . Ally Attacks . | . . Total Damage . | . . Kills . | . . Allies Corrupted . | . . Allies Melted . | . . Intel | -11 -10 ------- Run | Yrd Mat Active Infowar (turns) . | . . Robot Analysis Total . | . . Derelict Logs Recovered . | . . Drone Launches . | . . Drone Recoveries . | . . Exploration | -11 -10 ------------- Run | Yrd Mat Turns Passed 1937 | 72 1865 Spaces Moved 600 | 37 563 Core 6 | 4 2 Treads 594 | 33 561 Legs . | . . Wheels . | . . Hover . | . . Flight . | . . Fastest Speed 50 | 50 160 Average Speed 262 | 150 269 Slowest Speed 1650 | 160 1650 Overloaded Moves . | . . Propulsion Burnouts . | . . Robots Hopped . | . . Potential Cave-ins . | . . Cave-ins Triggered . | . . Exploration Rate (%) 42 | 4 81 Regions Visited 1 Branch Regions . Pre-discovered Areas . | . . Known Exits Taken . | . . Unknown Exits Taken 1 | 1 . Scrap Searched . | . . Spaces Dug . | . . Terrain Destroyed 18 | . 18 Melee . | . . Projectile . | . . AOE 18 | . 18 Terrain Rammed . | . . Walls Destroyed . | . . Machines Disabled . | . . Actions | -11 -10 --------- Run | Yrd Mat Total 823 | 45 778 Wait 116 | . 116 Move 599 | 36 563 Hop . | . . Pick Up 15 | . 15 Fast Attach 8 | 6 2 Attach . | . . Detach . | . . Swap 6 | . 6 Drop 2 | . 2 Fire 70 | 3 67 Melee . | . . Ram . | . . Kick . | . . Crush 7 | . 7 Escape Stasis . | . . Rewire . | . . Trap . | . . Miscellaneous . | . . Route ------- -11/Scrapyard -10/Materials (discovered 5 exits: [*Mat x3] / [*Min] / [*Sub]) History --------- Turn | Location | Event 31 | -11/Scrapyard | Discovered new exit (range 12) 73 | -11/Scrapyard | Entered Materials 301 | -10/Materials | Build established: Mutant 304 | -10/Materials | Discovered new exit (range 16) 585 | -10/Materials | Discovered new exit (range 5) 630 | -10/Materials | Discovered new exit (range 16) 1019 | -10/Materials | Discovered new exit (range 16) 1382 | -10/Materials | Core integrity fell below 50% 1851 | -10/Materials | Discovered new exit (range 15) 1928 | -10/Materials | Core integrity fell below 20% 1938 | -10/Materials | Destroyed by G-34 Mercenary with Small Laser Last Messages --------------- unit. Acquired 40 matter. Acquired Lgt. Assault Rifle. Acquired Utility Shielding. R-06 Scavenger collects Med. Laser. System corrupted: Heat flow error (+252). EXIT=FOUND Connecting with Terminal... >>Trojan(Botnet) Trojan loaded successfully. Testing... Terminal linked with 2 systems. Awaiting botnet instructions. ALERT: Suspicious activity at Terminal M007. Dispatching Investigation squad. Lgt. Treads destroyed. Lgt. Nuclear Core destroyed. Lgt. Assault Rifle destroyed. G-34 Mercenary destroyed. Lgt. Assault Rifle destroyed. Map ----- +----------------------------------------------------+ | | | | | | | | | | | | | | | | | | | | | | | | | | | | | | | | | | | | | | | | | ?????????????????????????????????????????????????? | | ?????????????????????????????????????????????????? | | ?????????????????????????????????????????????????? | | ?????????????????????????????????????????????????? | | ???????????????????############??????????????????? | | ??????????##########"T"##@ #??????????????????? | | ??????????# [%= #################### | | ??????????# < g | | ??????????# g #################### | | ??????????##### ####### #??????????????????? | | ??????????????# ???????##### #??????????????????? | | ??????????????# ????????????# #?#?#######????????? | | ??????????????#?????????????# #?# ! #????????? | | ????????????????????????????# #?# """ #????????? | | ????????????????????????????# #?# """ #????????? | | ????????????????????????????# #?# """ ###??????# | | ????????????????????????????# #?# ## ? | | ????????????????????????????# ??# """ ## """"""" | | ????????????????????????????# ??# """ ## """"""" | | ????????????????????????????# ### """ ## """"""" | | ????????????????????????????# # ! ## """"""" | | ????????????????????????????# # ## """"""" | | ????????????????????????????# # ## | | ????????????????????????????# ####+##### % | | ????????????????????????????# ## #######+### | | ????????????????????????????# T" | | ???????????????????????? + " | | ??????????????????????? # ^ | | ????????????????????????????## ### #######+### | | ?????????????????????????????# #?## #### | +----------------------------------------------------+ Best States ------------- Heat Dissipation 25 Energy Generation 14 Energy Capacity 250 Matter Stores 300 Matter Capacity 300 Sight Range 16 Terrain Scan Density 10 Evasion (%) 40 Recoil Reduction 2 Item Schematics ----------------- None Robot Schematics ------------------ None Fabricated ------------ Nothing Repaired ---------- Nothing Studied --------- None Alien Tech Used ----------------- None Achievements -------------- None Challenges ------------ None Game ------ Seed FlightStormFlakker Manual? 0 Play Time 00:11:17 Cumulative 1.5 hours Start 2026.01.03 @ 14:20:20 End 2026.01.03 @ 14:28:28 Sessions 1 Manual Loads 0 Difficulty Rogue Special Mode None Game No. 3 Rogue 3 Adventurer 0 Explorer 0 Win Type - Total 0 Types 0/0/0/0/0/0/0/0/0/0 Lore% 0 Gallery% 4 Achievement% 6 Wizard Run 0 Options --------- Layout 1 ASCII 0 Keyboard 1 Movement Vi Keybinds 0 Fullscreen 1 Font 24/Smallcaps Map View 50x35 Zoom Use 0% Tactical HUD 0 Map Filters NONE Filters NONE Steam 1 RUN: 19f96f1b-f0e3-42e2-8d19-c969f0aef69d